bitfinex/quotes_ETHUSD_20240922
["timestamp","ask_amount","ask_price","bid_price","bid_amount"]
[1726986080116,0.10876012,2593.3,2593.2,6.93334663]
[1726986081320,0.10876012,2593.3,2593.2,6.85623]
[1726986083024,2.47316012,2593.3,2593.2,6.85623]
[1726986084786,0.10876012,2593.3,2593.2,6.85623]
[1726986092368,0.10876012,2593.3,2593.2,6.93334588]
[1726986095072,0.10876012,2593.3,2593.2,6.85623]
[1726986097511,0.10876012,2593.3,2593.2,6.93334603]
[1726986099422,1.2528574,2593.6,2593.2,6.93334603]
[1726986099423,0.81055895,2593.4,2593.3,6.85609]
[1726986099589,0.10866385,2593.4,2593.3,8.49816382]
[1726986100129,0.9192228,2593.4,2593.3,8.49816382]
[1726986101217,3.2051228,2593.4,2593.3,8.49816382]
[1726986107287,2.39456385,2593.4,2593.3,8.49816382]
[1726986108137,3.20420299,2593.4,2593.3,8.49816382]
[1726986108340,2.39456385,2593.4,2593.3,8.49816382]
[1726986110502,3.60978205,2593.4,2593.3,8.49816382]
[1726986115613,1.32388205,2593.4,2593.3,8.49816382]
[1726986119259,5.4319905,2593.4,2593.3,6.85609]
[1726986119463,4.2167723,2593.4,2593.3,8.49816382]
[1726986119643,5.83729709,2593.4,2593.3,8.49816382]
[1726986120126,4.216801,2593.4,2593.3,8.49816382]
[1726986120331,5.83729709,2593.4,2593.3,8.49816382]
[1726986120751,4.216801,2593.4,2593.3,8.49816382]
[1726986121457,3.72399914,2593.4,2593.3,8.49816382]
[1726986123532,1.32409914,2593.4,2593.3,8.49816382]
[1726986131655,0.10866385,2593.4,2593.3,8.49816382]
[1726986131859,0.9191534,2593.4,2593.3,9.33266382]
[1726986132062,0.10866385,2593.4,2593.3,9.33266382]
[1726986132489,0.84812875,2593.6,2593.5,3.85579]
[1726986132661,0.81006534,2593.9,2593.7,3.0]
[1726986132985,1.62049609,2594.4,2594.2,6.85475]
[1726986133182,1.62049609,2594.5,2594.2,8.49682382]
[1726986133483,4.42626451,2594.6,2594.2,8.49682382]
[1726986133484,2.3999,2594.6,2594.2,8.49682382]
[1726986133847,2.3999,2594.6,2594.2,6.85475]
[1726986134048,2.3948392,2594.3,2594.2,6.85475]
[1726986137304,2.63432312,2594.3,2594.2,6.85475]
[1726986139106,2.63432312,2594.3,2594.2,3.85475]
[1726986139303,4.25481921,2594.3,2594.2,3.85475]
[1726986142101,4.25481921,2594.3,2594.1,7.7098]
[1726986142316,3.56942012,2594.2,2594.1,10.7098]
[1726986142482,3.10594698,2594.2,2594.1,10.7098]
[1726986142808,3.10594698,2594.2,2594.1,6.8549]
[1726986143378,4.31810335,2594.2,2594.1,6.8549]
[1726986147310,3.10594698,2594.2,2594.1,6.8549]
[1726986147511,3.913925,2594.2,2594.1,6.8549]
[1726986147689,3.20126536,2594.2,2594.1,6.8549]
[1726986148216,3.26049191,2594.2,2594.1,6.8549]
[1726986156446,3.66467475,2594.2,2594.1,6.8549]
[1726986156619,2.45251838,2594.2,2594.1,6.8549]
[1726986157410,3.66467475,2594.2,2594.1,6.8549]
[1726986157921,2.45251838,2594.2,2594.1,6.8549]
[1726986158115,3.26051976,2594.2,2594.1,6.8549]
[1726986158516,3.26054882,2594.2,2594.1,6.8549]
[1726986159527,0.90334882,2594.2,2594.1,6.8549]
[1726986161321,0.09531838,2594.2,2594.1,6.8549]
[1726986161822,1.24979557,2594.3,2594.2,3.85475]
[1726986162780,1.34521481,2594.3,2594.2,3.85475]
[1726986163854,2.07986705,2594.3,2594.2,3.85475]
[1726986164291,1.34521481,2594.3,2594.2,6.85475]
[1726986165396,1.34559693,2594.3,2594.2,6.85475]
[1726986167568,0.13305844,2594.3,2594.2,6.85475]
[1726986169568,1.75355453,2594.3,2594.2,6.85475]
[1726986172238,1.75275069,2594.3,2594.2,6.85475]
[1726986172824,0.1322546,2594.3,2594.2,6.85475]
[1726986173056,1.7501247,2594.3,2594.2,6.85475]
[1726986176548,0.1322546,2594.3,2594.2,6.85475]
[1726986177551,2.15588173,2594.3,2594.2,6.85475]
[1726986179347,2.85035516,2594.3,2594.2,3.0]
[1726986179552,3.19142803,2594.3,2594.2,6.85475]
[1726986180376,3.19142803,2594.3,2594.2,3.0]
[1726986180670,3.19142803,2594.3,2594.2,6.85475]
[1726986181049,2.4969546,2594.3,2594.2,6.85475]
[1726986181247,2.4969546,2594.3,2593.9,3.85509]
[1726986181564,2.3647,2594.1,2594.0,3.85494]
[1726986181764,4.79478525,2594.1,2594.0,3.85494]
[1726986181961,4.89017009,2594.1,2594.0,3.85494]
[1726986183383,2.46008484,2594.1,2594.0,3.85494]
[1726986186873,2.46008484,2594.1,2594.0,6.85494]
[1726986186874,0.09538484,2594.1,2594.0,6.85494]
[1726986187089,2.02439678,2594.1,2594.0,6.85494]
[1726986187383,1.71477033,2594.1,2594.0,6.85494]
[1726986193367,4.52200166,2594.1,2594.0,3.85494]
[1726986193706,4.97797997,2594.1,2594.0,3.85494]
[1726986193999,2.95357339,2594.1,2594.0,3.85494]
[1726986195308,2.95357339,2594.1,2593.9,3.85509]
[1726986195973,0.55117339,2594.1,2594.0,3.85505]
[1726986196558,0.09528969,2594.1,2594.0,3.85505]
[1726986200230,0.09528969,2594.1,2593.9,7.71019]
[1726986200416,0.09528969,2594.1,2594.0,3.85505]
[1726986205839,2.11839728,2594.1,2594.0,3.85505]
[1726986205987,2.1183836,2594.1,2594.0,3.85505]
[1726986208633,0.09528969,2594.1,2594.0,3.85505]
[1726986208935,0.59047346,2594.1,2594.0,3.85505]
[1726986210331,0.09528969,2594.1,2594.0,3.85505]
[1726986219145,2.11864277,2594.1,2594.0,3.85505]
[1726986221440,0.09528969,2594.1,2594.0,3.85505]
[1726986221640,4.40042104,2594.1,2594.0,3.85505]
[1726986221846,2.2815,2594.1,2594.0,3.85505]
[1726986222049,4.87184969,2594.1,2594.0,3.85505]
[1726986226144,2.84814534,2594.1,2594.0,3.85505]
[1726986226345,2.37347604,2594.1,2594.0,3.85505]
[1726986229947,2.37347604,2594.1,2593.5,0.8345]
[1726986230148,1.21474608,2593.6,2593.5,3.8345]
[1726986230558,1.21474608,2593.6,2593.5,7.69029]
[1726986234651,0.80979241,2593.6,2593.5,7.69029]
[1726986238546,0.89844095,2593.6,2593.5,7.69029]
[1726986241152,0.80979241,2593.6,2593.5,7.69029]
[1726986241452,0.89849805,2593.6,2593.5,9.33236382]
[1726986250783,0.08870564,2593.6,2593.5,9.33236382]
[1726986266574,0.80979241,2593.7,2593.6,6.85564]
[1726986266897,0.80979241,2593.7,2593.6,8.49771382]
[1726986267584,0.89248829,2593.7,2593.6,8.49771382]
[1726986278494,0.08269588,2593.7,2593.6,8.49771382]
[1726986278803,1.21474608,2593.8,2593.7,6.85549]
[1726986279147,1.29710496,2593.8,2593.7,6.85549]
[1726986280528,0.08235888,2593.8,2593.7,6.85549]
[1726986285141,1.70202033,2593.8,2593.7,6.85549]
[1726986285603,0.08235888,2593.8,2593.7,6.85549]
[1726986286389,1.70202033,2593.8,2593.7,6.85549]
[1726986286786,0.08235888,2593.8,2593.7,6.85549]
[1726986287024,1.70202033,2593.8,2593.7,6.85549]
[1726986307000,0.08235888,2593.8,2593.7,7.68999]
[1726986310577,1.70202033,2593.8,2593.7,7.68999]
[1726986312699,1.70202033,2593.8,2593.7,6.85549]
[1726986313757,0.08235888,2593.8,2593.7,6.85549]
[1726986313959,0.52052366,2593.8,2593.7,6.85549]
[1726986314465,2.1414218,2593.8,2593.7,6.85549]
[1726986318288,1.70325702,2593.8,2593.7,6.85549]
[1726986318781,1.69571208,2593.8,2593.7,6.85549]
[1726986319507,0.07481394,2593.8,2593.7,6.85549]
[1726986319717,4.56440283,2593.8,2593.7,6.85549]
[1726986320076,2.53851394,2593.8,2593.7,6.85549]
[1726986320292,3.035472,2593.8,2593.7,6.85549]
[1726986322701,5.06107481,2593.8,2593.7,6.85549]
[1726986328128,2.10041675,2593.8,2593.7,8.49756382]
[1726986328329,1.69487034,2593.8,2593.7,8.49756382]
[1726986344461,1.69487034,2593.8,2593.7,6.85549]
[1726986344920,2.54801394,2593.8,2593.7,6.85549]
[1726986345263,4.57316014,2593.8,2593.7,6.85549]
[1726986345960,4.5732928,2593.8,2593.7,6.85549]
[1726986350993,5.03062208,2593.8,2593.7,6.85549]
[1726986351155,5.03058023,2593.8,2593.7,6.85549]
[1726986352168,4.57325095,2593.8,2593.7,6.85549]
[1726986356176,4.57322763,2593.8,2593.7,6.85549]
[1726986360005,2.54801394,2593.8,2593.7,3.0]
[1726986362220,4.57336131,2593.8,2593.7,3.0]
[1726986362431,3.24840008,2593.8,2593.7,3.0]
[1726986365500,5.27370312,2593.8,2593.7,3.0]
[1726986366034,3.24840008,2593.8,2593.7,3.0]
[1726986368056,3.24840008,2593.8,2593.7,6.85549]
[1726986368337,2.54801394,2593.8,2593.7,6.85549]
[1726986371306,2.54801394,2593.8,2593.5,5.49784382]
[1726986371307,2.54801394,2593.8,2593.6,6.8556]
[1726986371646,2.02505272,2593.7,2593.6,6.8556]
[1726986371943,2.09977861,2593.7,2593.6,6.8556]
[1726986374975,2.09956908,2593.7,2593.6,6.8556]
[1726986376691,1.6945781,2593.7,2593.6,6.8556]
[1726986389675,0.07472589,2593.7,2593.6,6.8556]
[1726986390000,1.62053142,2593.7,2593.6,6.8556]
[1726986390202,1.69289257,2593.7,2593.6,6.8556]
[1726986390402,1.69297204,2593.7,2593.6,6.8556]
[1726986391301,1.69303644,2593.7,2593.6,6.8556]
[1726986391509,0.07236115,2593.7,2593.6,6.8556]
[1726986391896,2.02576274,2593.8,2593.7,6.85549]
[1726986392100,0.6922478,2593.8,2593.7,6.85549]
[1726986392840,3.1504478,2593.8,2593.7,6.85549]
[1726986394317,2.4582,2593.8,2593.7,6.85549]
[1726986399458,2.4582,2593.8,2593.7,3.0]
[1726986402603,2.53067153,2593.8,2593.7,3.0]
[1726986420859,2.4737,2593.7,2593.2,3.8561]
[1726986421158,2.4737,2593.3,2593.2,3.8561]
[1726986421519,4.57103313,2593.3,2593.2,3.8561]
[1726986422216,2.09733313,2593.3,2593.2,3.8561]
[1726986423558,0.07194095,2593.3,2593.2,3.8561]
[1726986423859,2.09733313,2593.3,2593.2,3.8561]
[1726986424164,0.07194095,2593.3,2593.2,3.8561]
[1726986424322,2.09647671,2593.3,2593.2,3.8561]
[1726986424722,0.07194095,2593.3,2593.2,3.8561]
[1726986425670,2.09647671,2593.3,2593.2,3.8561]
[1726986426457,0.07194095,2593.3,2593.2,3.8561]
[1726986427322,2.09647671,2593.3,2593.2,3.8561]
[1726986428535,0.07194095,2593.3,2593.2,3.8561]
[1726986429771,1.69000658,2593.3,2593.2,3.8561]
[1726986433159,1.69000658,2593.3,2593.0,3.85641]
[1726986433359,1.21326412,2593.1,2593.0,10.71284]
[1726986433762,1.28456542,2593.1,2593.0,10.71284]
[1726986433962,1.28456542,2593.1,2593.0,6.85641]
[1726986436441,0.0713013,2593.1,2593.0,6.85641]
[1726986438744,1.28456542,2593.1,2593.0,6.85641]
[1726986438945,1.28456542,2593.1,2593.0,3.0]
[1726986439145,2.4114,2593.0,2592.8,3.0]
[1726986439456,0.87973322,2592.9,2592.8,3.0]
[1726986439671,0.87970527,2592.9,2592.8,3.0]
[1726986439846,1.2840394,2592.9,2592.8,3.0]
[1726986440240,0.07112086,2592.9,2592.8,6.85683]
[1726986440472,0.87961391,2592.9,2592.8,6.85683]
[1726986441180,0.87961391,2592.9,2592.8,3.0]
[1726986443365,0.07112086,2592.9,2592.8,3.0]
[1726986444862,1.46387138,2592.9,2592.8,3.0]
[1726986445058,3.14421167,2592.9,2592.6,6.857]
[1726986445259,0.80829589,2592.7,2592.6,6.857]
[1726986445466,0.87914501,2592.7,2592.6,6.857]
[1726986446586,0.87903982,2592.7,2592.6,6.857]
[1726986458788,4.48612281,2592.7,2592.3,3.85757]
[1726986458972,0.80792813,2592.5,2592.3,3.8575]
[1726986459318,3.21768928,2592.4,2592.3,3.8575]
[1726986459840,3.21768928,2592.4,2592.0,3.8579]
[1726986459841,4.22641806,2592.4,2592.0,3.8579]
[1726986460016,0.80797394,2592.3,2592.1,3.85779]
[1726986460349,0.07045204,2592.2,2592.1,3.85779]
[1726986461129,0.80797394,2592.3,2592.1,3.85779]
[1726986461361,0.07045204,2592.2,2592.1,6.85779]
[1726986461631,0.80797394,2592.3,2592.1,6.85779]
[1726986461840,0.07045204,2592.2,2592.1,6.85779]
[1726986462136,0.80797394,2592.3,2592.1,6.85779]
[1726986462289,0.07045204,2592.2,2592.1,6.85779]
[1726986462825,0.07039011,2592.2,2592.1,6.85779]
[1726986463149,0.80797394,2592.3,2592.2,3.85772]
[1726986463827,0.80797394,2592.3,2591.8,1.64207382]
[1726986463828,2.3391,2592.2,2591.8,3.85824]
[1726986464054,1.2118922,2592.0,2591.8,3.85824]
[1726986464334,0.80804425,2591.9,2591.8,3.85824]
[1726986465897,3.14714425,2591.9,2591.6,7.71698]
[1726986466093,3.74485446,2591.9,2591.6,7.71698]
[1726986466796,3.74485446,2591.9,2591.7,3.85846]
[1726986467543,2.93681021,2591.9,2591.7,3.85846]
[1726986467847,3.74485446,2591.9,2591.7,3.85846]
[1726986469613,0.37448545,2591.8,2591.6,7.71701]
[1726986470432,0.37448545,2591.8,2591.7,3.85847]
[1726986471140,0.37448545,2591.8,2591.4,10.71767]
[1726986471312,0.37448545,2591.8,2591.4,10.71763]
[1726986471646,1.1825297,2591.8,2591.4,10.71763]
[1726986471851,0.35216297,2591.7,2591.4,10.71763]
[1726986472250,2.3391,2591.6,2591.3,3.03844304]
[1726986472542,2.3391,2591.6,2591.5,3.0]
[1726986475546,0.35216297,2591.7,2591.5,6.85876]
[1726986477343,2.77068545,2591.8,2591.5,6.85876]
[1726986477725,0.06952532,2591.7,2591.5,6.85876]
[1726986478294,0.06936471,2591.6,2591.5,6.85876]
[1726986478616,2.77068545,2591.8,2591.5,6.85876]
[1726986478954,0.06945382,2591.7,2591.5,6.85876]
[1726986479269,3.5787297,2591.8,2591.5,6.85876]
[1726986479414,0.42732679,2591.7,2591.5,6.85876]
[1726986481732,0.42732679,2591.7,2591.6,3.85862]
[1726986483174,0.06945382,2591.7,2591.6,3.85862]
[1726986483534,3.20424425,2592.0,2591.8,7.71648]
[1726986483875,2.3962,2592.0,2591.8,3.85823]
[1726986484577,3.20424425,2592.0,2591.8,3.85823]
[1726986485081,2.3962,2592.0,2591.8,3.85823]
[1726986485229,3.20424425,2592.0,2591.8,3.85823]
[1726986485431,3.6458579,2592.0,2591.8,3.85823]
[1726986489852,0.80804425,2591.9,2591.8,3.85823]
[1726986490792,0.80804425,2591.9,2591.8,3.840357]
[1726986492752,0.87541559,2591.9,2591.8,3.840357]
[1726986496008,0.06737134,2591.9,2591.8,9.31693082]
[1726986496378,0.80804425,2592.3,2592.1,3.85787]
[1726986496669,0.80804425,2592.3,2592.2,3.85772]
[1726986497588,1.2118922,2592.4,2592.3,3.85757]
[1726986498498,1.21145964,2592.4,2592.3,3.85757]
[1726986499525,4.10716563,2592.5,2592.3,3.85757]
[1726986499826,1.61806563,2592.4,2592.2,3.85763]
[1726986500133,1.2118923,2592.3,2592.2,3.85763]
[1726986503398,1.61806563,2592.4,2592.2,3.85763]
[1726986503600,1.61806563,2592.4,2592.3,3.85757]
[1726986504529,4.51064704,2592.5,2592.3,3.85757]
[1726986504726,5.41056997,2592.5,2592.3,3.85757]
[1726986505520,2.02154704,2592.4,2592.3,3.85757]
[1726986506202,2.02154704,2592.4,2592.2,7.71526]
[1726986506410,1.61784296,2592.3,2592.2,3.85763]
[1726986507232,1.61784296,2592.3,2592.2,7.71527]
[1726986507748,1.67867721,2592.3,2592.2,3.85763]
[1726986508120,2.38760193,2592.3,2592.1,3.85786]
[1726986508319,1.61784296,2592.2,2592.1,3.85786]
[1726986508738,1.67865723,2592.2,2592.1,3.85786]
[1726986520621,1.67865723,2592.2,2592.0,3.85798]
[1726986520768,2.35967046,2592.2,2592.0,3.85798]
[1726986521688,1.61784296,2592.1,2592.0,3.85798]
[1726986521888,1.6787355,2592.1,2592.0,3.85798]
[1726986522205,0.06089254,2592.1,2592.0,3.85798]
[1726986522398,1.6787355,2592.1,2592.0,3.85798]
[1726986522795,0.06089254,2592.1,2592.0,3.85798]
[1726986523191,1.6787355,2592.1,2592.0,3.85798]
[1726986532988,0.06089254,2592.1,2592.0,3.85798]
[1726986533590,2.08517315,2592.1,2592.0,3.85798]
[1726986534796,2.08517315,2592.1,2592.0,3.85802]
[1726986534982,2.08593776,2592.1,2592.0,3.85802]
[1726986539792,0.06089254,2592.1,2592.0,3.85802]
[1726986540118,5.54041409,2592.3,2592.0,3.85802]
[1726986540422,2.02624174,2592.1,2592.0,3.85802]
[1726986540622,0.82142632,2592.2,2592.0,3.85802]
[1726986540780,0.06079959,2592.1,2592.0,3.85802]
[1726986544728,0.06079959,2592.1,2591.9,3.85806]
[1726986544932,2.02716076,2592.0,2591.9,6.85806]
[1726986545514,2.08787124,2592.0,2591.9,6.85806]
[1726986548837,2.08798438,2592.0,2591.9,6.85806]
[1726986551135,0.06071048,2592.0,2591.9,6.85806]
[1726986551444,3.19326633,2592.2,2591.9,6.85806]
[1726986551733,0.06075189,2592.0,2591.9,6.85806]
[1726986551887,0.06084099,2592.1,2591.9,6.85806]
[1726986554694,5.18024746,2592.0,2591.2,3.85918]
[1726986554999,1.21678439,2591.4,2591.3,4.73189304]
[1726986555223,0.81112892,2591.5,2591.4,1.23369946]
[1726986555433,0.06003619,2591.4,2591.3,7.82049046]
[1726986555650,1.21678439,2591.7,2591.6,3.85862]
[1726986555796,2.02832892,2592.0,2591.8,3.85832]
[1726986555797,1.62237918,2591.9,2591.8,3.85832]
[1726986556001,1.21651691,2592.1,2591.9,3.85817]
[1726986556231,1.21651691,2592.4,2592.2,3.85772]
[1726986556435,1.21651691,2592.6,2592.5,4.69178]
[1726986556646,2.02832892,2592.9,2592.3,1.71921211]
[1726986556647,1.21651691,2592.9,2592.7,3.0]
[1726986556938,1.21483201,2592.8,2592.3,0.8345]
[1726986557156,1.21483201,2592.8,2592.3,3.91163497]
[1726986557311,1.21483201,2592.8,2592.4,4.64207382]
[1726986557520,1.21483201,2592.9,2592.4,4.64207382]
[1726986558119,1.21483201,2592.9,2592.4,1.64207382]
[1726986558460,1.21483201,2592.9,2592.4,4.64207382]
[1726986559058,1.21483201,2592.9,2592.4,8.49937382]
[1726986559352,1.21483201,2592.9,2592.5,0.8345]
[1726986559515,1.21483201,2593.0,2592.5,0.8345]
[1726986560064,3.55623201,2592.9,2592.5,0.8345]
[1726986561612,2.3414,2592.9,2592.5,0.8345]
[1726986562222,3.55623201,2592.9,2592.5,0.8345]
[1726986562642,2.3414,2592.9,2592.5,0.8345]
[1726986565262,0.8079417,2592.9,2592.5,5.47657382]
[1726986565764,0.8079417,2593.0,2592.5,5.47657382]
[1726986565935,0.8079417,2592.9,2592.5,5.47657382]
[1726986566434,0.8079417,2593.0,2592.7,1.64207382]
[1726986566638,0.8079417,2593.1,2592.7,1.64207382]
[1726986566838,0.8079417,2593.1,2592.8,0.8345]
[1726986567536,0.0496682,2593.0,2592.8,0.8345]
[1726986568947,0.8079417,2593.2,2592.8,0.8345]
[1726986569174,0.04975722,2593.1,2592.8,0.8345]
[1726986573178,0.8079417,2593.3,2592.8,0.8345]
[1726986573474,0.0496682,2593.0,2592.8,0.8345]
[1726986573680,0.8079417,2593.3,2592.8,0.8345]
[1726986574154,0.04984624,2593.2,2592.8,0.8345]
[1726986574343,0.8079417,2593.3,2592.8,0.8345]
[1726986574543,0.04984624,2593.2,2592.8,0.8345]
[1726986574779,0.8079417,2593.3,2592.8,0.8345]
[1726986574976,0.04975722,2593.1,2592.8,0.8345]
[1726986575183,0.8079417,2593.3,2592.8,0.8345]
[1726986575338,3.85708,2592.7,2591.8,3.85822]
[1726986575571,3.85708,2592.7,2591.8,0.8345]
[1726986575572,3.85731,2592.5,2591.8,0.8345]
[1726986575741,0.8079417,2592.3,2591.8,0.8345]
[1726986576081,5.07214201,2592.5,2591.8,0.8345]
[1726986576082,0.0493587,2592.2,2591.8,0.8345]
[1726986576588,0.04926962,2592.1,2591.8,0.8345]
[1726986576942,0.8079417,2592.4,2591.8,3.8345]
[1726986577146,0.04960505,2592.3,2591.8,3.8345]
[1726986578958,0.04960505,2592.3,2591.8,0.8345]
[1726986580811,0.04960505,2592.3,2591.8,3.8345]
[1726986581595,0.85754675,2592.3,2591.8,3.8345]
[1726986581892,0.04960505,2592.3,2591.8,3.8345]
[1726986582304,0.85754675,2592.3,2591.8,3.8345]
[1726986583299,0.04960505,2592.3,2591.8,3.8345]
[1726986583513,0.85754675,2592.3,2591.8,3.8345]
[1726986583667,0.04960505,2592.3,2591.8,3.8345]
[1726986584694,0.85754675,2592.3,2591.8,3.8345]
[1726986584912,7.11438683,2592.3,2591.8,0.8345]
[1726986585375,2.2631,2592.2,2591.6,7.69308]
[1726986585902,0.04591647,2592.1,2591.6,3.8345]
[1726986586071,0.04591647,2592.1,2591.8,3.0]
[1726986588361,3.0710417,2592.4,2591.9,0.8345]
[1726986588556,4.04957045,2592.4,2591.9,0.8345]
[1726986588796,0.04450482,2592.3,2591.9,0.8345]
[1726986592864,0.85244652,2592.3,2591.9,0.8345]
[1726986593089,0.04450482,2592.3,2591.9,0.8345]
[1726986595805,0.85244652,2592.3,2591.9,0.8345]
[1726986596469,0.04450482,2592.3,2591.9,0.8345]
[1726986596860,1.76908225,2592.3,2591.6,3.8345]
[1726986597102,0.8079417,2592.2,2591.6,7.6931]
[1726986597464,0.04297903,2592.1,2591.6,7.6931]
[1726986602076,0.04297903,2592.1,2591.7,3.85836]
[1726986607108,0.04297903,2592.1,2591.8,3.85829]
[1726986607281,0.04297903,2592.1,2591.9,0.8345]
[1726986618635,0.85092073,2592.1,2591.8,6.85826]
[1726986620000,0.8079417,2592.0,2591.8,6.85826]
[1726986620334,0.04098752,2591.9,2591.8,6.85826]
[1726986620539,0.84892922,2591.9,2591.8,6.85826]
[1726986625789,0.84892922,2591.9,2591.8,3.0]
[1726986625934,2.03198074,2591.9,2591.6,3.0]
[1726986626137,0.81086716,2591.7,2591.6,3.0]
[1726986626332,0.81076292,2591.7,2591.6,3.0]
[1726986626529,1.25709004,2591.7,2591.6,3.0]
[1726986629068,1.25709004,2591.7,2591.3,4.50224298]
[1726986629069,1.25709004,2591.7,2591.4,3.0]
[1726986629269,0.81061782,2591.6,2591.4,6.8589]
[1726986629468,0.04061114,2591.5,2591.4,6.8589]
[1726986631469,0.04061114,2591.5,2591.4,3.0]
[1726986632365,0.04061114,2591.5,2591.4,6.85891]
[1726986632756,0.81061782,2591.6,2591.4,6.85891]
[1726986633063,0.04049641,2591.5,2591.4,6.85891]
[1726986634772,2.4613,2591.8,2591.4,6.85891]
[1726986635296,0.04034131,2591.7,2591.4,6.85891]
[1726986635495,2.4613,2591.8,2591.4,6.85891]
[1726986635791,0.04034131,2591.7,2591.4,6.85891]
[1726986636092,2.4613,2591.8,2591.4,6.85891]
[1726986636399,0.04034131,2591.7,2591.4,6.85891]
[1726986636826,2.4613,2591.8,2591.3,3.64324298]
[1726986637028,0.0402522,2591.6,2591.3,3.64324298]
[1726986637198,0.04034131,2591.7,2591.3,3.64324298]
[1726986637399,0.04016308,2591.5,2591.4,3.85891]
[1726986637663,2.4613,2591.8,2591.5,3.0]
[1726986642362,6.951642,2591.8,2591.3,3.64324298]
[1726986642654,2.4239,2591.7,2591.3,0.03844304]
[1726986643420,2.4239,2591.7,2591.3,3.03844304]
[1726986647574,0.04059589,2591.6,2591.3,3.03844304]
[1726986650462,0.04059589,2591.6,2591.3,0.03844304]
[1726986650761,2.4239,2591.5,2591.3,0.03844304]
[1726986651151,6.32322767,2591.4,2591.3,0.03844304]
[1726986651592,7.96530149,2591.4,2591.3,0.03844304]
[1726986652344,6.32322767,2591.4,2591.3,0.03844304]
[1726986652574,7.96530149,2591.4,2591.3,0.03844304]
[1726986652733,9.58340454,2591.4,2591.3,0.03844304]
[1726986652921,9.51178183,2591.4,2591.3,0.03844304]
[1726986653331,11.53441065,2591.4,2591.3,0.03844304]
[1726986653672,9.51178183,2591.4,2591.3,0.03844304]
[1726986653967,7.86970801,2591.4,2591.3,0.03844304]
[1726986654172,9.89176343,2591.4,2591.3,0.03844304]
[1726986654527,7.86970801,2591.4,2591.3,0.03844304]
[1726986655453,9.48617648,2591.4,2591.3,0.03844304]
[1726986658298,7.86970801,2591.4,2591.3,0.03844304]
[1726986659284,9.08108695,2591.4,2591.3,0.03844304]
[1726986660262,7.86970801,2591.4,2591.3,0.03844304]
[1726986660659,9.08109306,2591.4,2591.3,0.03844304]
[1726986665257,7.86970801,2591.4,2591.3,0.03844304]
[1726986665456,9.48617648,2591.4,2591.3,0.03844304]
[1726986666200,7.86970801,2591.4,2591.3,0.03844304]
[1726986666398,9.48617648,2591.4,2591.3,0.03844304]
[1726986666777,9.08093887,2591.4,2591.3,0.03844304]
[1726986666959,9.48617648,2591.4,2591.3,0.03844304]
[1726986667693,7.86970801,2591.4,2591.3,0.03844304]
[1726986668360,9.48617648,2591.4,2591.3,0.03844304]
[1726986675468,0.04041767,2591.4,2591.3,0.03844304]
[1726986675774,0.04041767,2591.4,2591.3,9.37407686]
[1726986676127,0.80821703,2591.9,2591.5,3.8587]
[1726986676357,1.21235245,2592.0,2591.3,9.37407686]
[1726986676358,0.80821703,2592.0,2591.3,9.37407686]
[1726986676567,0.80821703,2592.0,2591.3,0.87294304]
[1726986676568,3.07461703,2591.9,2591.3,0.87294304]
[1726986676792,0.80821703,2591.8,2591.4,3.0]
[1726986677559,0.80821703,2591.8,2591.4,6.85889]
[1726986677762,0.80821703,2591.8,2591.4,3.0]
[1726986682463,4.66654703,2591.8,2591.4,3.0]
[1726986682668,0.80821703,2591.7,2591.3,0.87294304]
[1726986682965,0.80821703,2591.7,2591.3,4.73199304]
[1726986683167,0.80821703,2591.7,2591.4,3.0]
[1726986684664,0.80821703,2591.7,2591.4,6.85891]
[1726986684966,0.80821703,2591.8,2591.4,6.85891]
[1726986685172,0.80821703,2591.7,2591.4,6.85891]
[1726986685334,0.80821703,2591.8,2591.4,6.85891]
[1726986685542,0.80821703,2591.7,2591.4,6.85891]
[1726986686347,0.80821703,2591.7,2591.4,3.0]
[1726986693791,4.66674703,2591.7,2591.3,0.87294304]
[1726986694105,0.80821703,2591.5,2591.3,0.03844304]
[1726986695068,0.80821703,2591.4,2591.3,0.03844304]
[1726986696184,0.80821703,2591.5,2591.3,0.03844304]
[1726986698894,0.5747345,2591.5,2591.3,0.03844304]
[1726986700267,7.33740245,2591.6,2591.3,0.03844304]
[1726986701078,1.21235245,2591.5,2591.3,0.03844304]
[1726986701585,6.14321,2591.4,2591.3,0.03844304]
[1726986701908,7.75967847,2591.4,2591.3,0.03844304]
[1726986704587,9.80741156,2591.4,2591.3,0.03844304]
[1726986705325,7.78528382,2591.4,2591.3,0.03844304]
[1726986705469,9.35044559,2591.4,2591.3,0.03844304]
[1726986706709,11.3726751,2591.4,2591.3,0.03844304]
[1726986707314,9.73060128,2591.4,2591.3,0.03844304]
[1726986708582,9.73045762,2591.4,2591.3,0.03844304]
[1726986708793,7.44615762,2591.4,2591.3,0.03844304]
[1726986709635,1.21318725,2591.4,2591.3,0.87294304]
[1726986709787,6.28475302,2591.9,2591.5,4.69319]
[1726986709788,0.80867281,2591.7,2591.5,4.69319]
[1726986710131,0.80867281,2591.9,2591.6,6.33518382]
[1726986710314,1.21318725,2592.0,2591.6,6.33518382]
[1726986710315,0.80867281,2592.0,2591.8,3.85832]
[1726986711625,0.80867281,2592.1,2591.8,3.85832]
[1726986711833,0.80867281,2592.0,2591.8,3.85832]
[1726986712925,0.80867281,2592.0,2591.7,3.85846]
[1726986717326,0.80867281,2591.9,2591.7,3.85846]
[1726986718306,0.80867281,2591.9,2591.6,4.69299]
[1726986718536,0.80867281,2591.9,2591.6,8.55151]
[1726986719601,0.80867281,2591.9,2591.7,3.85846]
[1726986720646,0.80867281,2591.9,2591.6,8.55152]
[1726986721228,0.80867281,2591.9,2591.7,3.85838]
[1726986722415,0.80867281,2592.0,2591.7,3.85838]
[1726986724946,0.80867281,2592.0,2591.8,3.85829]
[1726986725116,0.80867281,2592.0,2591.8,7.71651]
[1726986725350,0.80867281,2592.0,2591.8,3.85822]
[1726986725521,0.80867281,2592.0,2591.8,7.71646]
[1726986725748,0.80867281,2592.0,2591.8,3.85822]
[1726986728010,0.80867281,2592.0,2591.9,3.85817]
[1726986728217,0.80867281,2592.1,2592.0,3.85802]
[1726986728414,0.80867281,2592.2,2592.0,3.85802]
[1726986729012,0.80867281,2592.2,2592.0,7.71604]
[1726986729313,0.80867281,2592.2,2592.0,3.85802]
[1726986729510,0.80867281,2592.3,2592.0,3.85802]
[1726986729715,0.80867281,2592.2,2592.0,3.85802]